lending/lending_fUSD_20260124
["ID","MTS","AMOUNT","RATE_DAILY","PERIOD"]
[403186033,1769256633679,500.0,0.00011777,2]
[403186034,1769256633737,171.86279438,0.00011777,2]
[403186035,1769256633815,500.0,0.00011777,2]
[403186036,1769256637607,173.63605022,0.00011777,2]
[403186037,1769256637651,166.26213359,0.00011777,2]
[403186039,1769256638336,-574.0,0.00011778,2]
[403186040,1769256638348,-314.06540004,0.00011778,2]
[403186041,1769256638360,-33329.90995989,0.00011778,2]
[403186042,1769256638371,-3076.73606805,0.00011778,2]
[403186043,1769256638382,-696.05560694,0.00011778,2]
[403186044,1769256638402,-11349.04332177,0.00011778,2]
[403186045,1769256638500,-18200.89889173,0.00011778,2]
[403186046,1769256638513,-281.55,0.00011778,2]
[403186047,1769256638528,-2146.5084091,0.00011778,2]
[403186048,1769256638539,-3418.34912171,0.00011778,2]
[403186049,1769256638550,-597.05296577,0.00011778,2]
[403186050,1769256638561,-1691.06524236,0.00011778,2]
[403186051,1769256638601,-3375.5170958,0.00011778,2]
[403186052,1769256638612,-1425.8476841,0.00011778,2]
[403186059,1769256639756,4107.46109805,0.00011678,2]
[403186060,1769256639971,625.55900093,0.00011777,2]
[403186061,1769256640017,484.63412487,0.00011777,2]
[403186062,1769256640069,312.32773171,0.00011777,2]
[403186065,1769256640389,-195143.62230471,0.00011778,2]
[403186066,1769256640546,-327.81498726,0.00011778,2]
[403186067,1769256640600,-8808.93369751,0.00011778,2]
[403186068,1769256640654,-536959.20549295,0.00011778,2]
[403186069,1769256640664,-6373.61287588,0.00011778,2]
[403186070,1769256640673,-279.33931153,0.00011778,2]
[403186071,1769256640682,-246.0,0.00011778,2]
[403186072,1769256640691,-1200.0,0.00011877,2]
[403186073,1769256640700,-150.0,0.00011877,2]
[403186074,1769256640710,-151.0,0.00011878,2]
[403186075,1769256640721,-151.0,0.00011878,2]
[403186076,1769256640737,-151.0,0.00011878,2]
[403186077,1769256640749,-151.0,0.00011878,2]
[403186078,1769256640759,-151.0,0.00011878,2]
[403186079,1769256640768,-246.52406605,0.00011878,2]
[403186080,1769256640777,-151.0,0.00011878,2]
[403186081,1769256640787,-151.0,0.00011878,2]
[403186082,1769256640796,-151.0,0.00011878,2]
[403186083,1769256640806,-151.0,0.00011878,2]
[403186085,1769256640815,-151.0,0.00011878,2]
[403186086,1769256640824,-151.0,0.00011878,2]
[403186088,1769256640835,-157.99542452,0.00011878,2]
[403186091,1769256640844,-157.99542452,0.00011878,2]
[403186093,1769256640853,-250.0,0.00011878,2]
[403186095,1769256640862,-300.0,0.00011878,2]
[403186097,1769256640872,-151.0,0.00011878,2]
[403186098,1769256640881,-563.21075187,0.00011878,2]
[403186100,1769256640891,-250.0,0.0001188,2]
[403186102,1769256640900,-1000.0,0.00011978,2]
[403186104,1769256640910,-9999.99,0.00012458,2]
[403186106,1769256640919,-8798.70850594,0.00012458,2]
[403186108,1769256640929,-457.22,0.000126,2]
[403186111,1769256640939,-854.43,0.000126,2]
[403186112,1769256640948,-279.3393115,0.00012653,2]
[403186114,1769256640957,-338.06474603,0.00012741,2]
[403186117,1769256640967,-866.27,0.00012762,2]
[403186118,1769256640976,-1680.0,0.00012954,2]
[403186120,1769256640986,-300.0,0.00012956,2]
[403186123,1769256640996,-255.0,0.00012957,2]
[403186125,1769256641006,-184.0,0.00013014,2]
[403186127,1769256641015,-443.0,0.0001304,2]
[403186129,1769256641025,-686.0,0.00013041,2]
[403186131,1769256641034,-300.0,0.00013065,2]
[403186133,1769256641043,-500.0,0.00013065,2]
[403186134,1769256641053,-250.0,0.00013065,2]
[403186136,1769256641062,-150.08724192,0.00013065,2]
[403186139,1769256641072,-448.16559277,0.00013065,2]
[403186141,1769256641081,-150.0,0.00013066,2]
[403186142,1769256641091,-8798.70850594,0.00013138,2]
[403186145,1769256641100,-500.0,0.00013425,2]
[403186147,1769256641109,-150.0,0.00013425,2]
[403186149,1769256641118,-500.0,0.00013425,2]
[403186150,1769256641127,-150.0,0.00013425,2]
[403186152,1769256641136,-150.0,0.00013425,2]
[403186155,1769256641146,-150.0,0.00013425,2]
[403186156,1769256641155,-150.0,0.00013425,2]
[403186159,1769256641164,-150.0,0.00013425,2]
[403186160,1769256641173,-200.85753101,0.00013425,2]
[403186163,1769256641183,-150.0,0.00013425,2]
[403186165,1769256641191,-150.0,0.00013425,2]
[403186167,1769256641201,-150.0,0.00013425,2]
[403186169,1769256641211,-150.0,0.00013425,2]
[403186171,1769256641221,-500.0,0.00013425,2]
[403186172,1769256641231,-158.58448386,0.00013425,2]
[403186175,1769256641240,-500.0,0.00013425,2]
[403186177,1769256641249,-500.0,0.00013425,2]
[403186178,1769256641258,-500.0,0.00013425,2]
[403186181,1769256641269,-500.0,0.00013425,2]
[403186183,1769256641277,-500.0,0.00013425,2]
[403186184,1769256641286,-150.0,0.00013425,2]
[403186187,1769256641297,-500.0,0.00013425,2]
[403186189,1769256641306,-150.0,0.00013425,2]
[403186191,1769256641317,-150.0,0.00013425,2]
[403186193,1769256641327,-150.0,0.00013425,2]
[403186195,1769256641336,-150.0,0.0001348,2]
[403186197,1769256641345,-500.0,0.0001348,2]
[403186199,1769256641354,-150.0,0.0001348,2]
[403186201,1769256641363,-150.0,0.0001348,2]
[403186203,1769256641373,-150.0,0.0001348,2]
[403186205,1769256641382,-175.63030324,0.0001348,2]
[403186207,1769256641392,-150.0,0.0001348,2]
[403186209,1769256641401,-500.0,0.0001348,2]
[403186211,1769256641410,-500.0,0.0001348,2]
[403186213,1769256641419,-500.0,0.0001348,2]
[403186215,1769256641427,-500.0,0.0001348,2]
[403186217,1769256641437,-500.0,0.0001348,2]
[403186219,1769256641446,-500.0,0.0001348,2]
[403186221,1769256641455,-500.0,0.0001348,2]
[403186223,1769256641464,-205.41720599,0.0001348,2]
[403186225,1769256641473,-215.96483373,0.0001348,2]
[403186227,1769256641483,-500.0,0.00013507,2]
[403186229,1769256641491,-279.3393115,0.00013527,2]
[403186230,1769256641500,-500.0,0.00013534,2]
[403186233,1769256641510,-150.0,0.00013535,2]
[403186235,1769256641520,-500.0,0.00013535,2]
[403186237,1769256641529,-150.0,0.00013535,2]
[403186238,1769256641539,-150.0,0.00013535,2]
[403186240,1769256641549,-150.0,0.00013535,2]
[403186243,1769256641558,-200.0,0.00013535,2]
[403186245,1769256641567,-500.0,0.00013535,2]
[403186247,1769256641577,-500.0,0.00013535,2]
[403186249,1769256641587,-350.0,0.00013535,2]
[403186251,1769256641596,-500.0,0.00013535,2]
[403186253,1769256641605,-500.0,0.00013535,2]
[403186255,1769256641614,-500.0,0.00013535,2]
[403186257,1769256641623,-493.25248034,0.00013535,2]
[403186258,1769256641633,-150.0,0.00013589,2]
[403186260,1769256641642,-500.0,0.00013589,2]
[403186262,1769256641651,-200.0,0.00013589,2]
[403186265,1769256641661,-250.0,0.00013589,2]
[403186266,1769256641670,-150.0,0.00013589,2]
[403186268,1769256641680,-500.0,0.00013589,2]
[403186271,1769256641690,-500.0,0.00013589,2]
[403186273,1769256641699,-308.7610726,0.00013589,2]
[403186274,1769256641709,-500.0,0.00013589,2]
[403186276,1769256641720,-500.0,0.00013589,2]
[403186281,1769256641981,-1841.2,0.00013601,2]
[403186282,1769256642011,-27135.86,0.00013601,2]
[403186283,1769256642022,-241.33515789,0.00013644,2]
[403186284,1769256642031,-251.35617577,0.00013644,2]
[403186285,1769256642042,-290.22964713,0.00013644,2]
[403186286,1769256642051,-500.0,0.00013644,2]
[403186287,1769256642061,-248.51907339,0.00013644,2]
[403186288,1769256642073,-402.81706826,0.00013644,2]
[403186289,1769256642082,-500.0,0.00013698,2]
[403186290,1769256642091,-500.0,0.00013698,2]
[403186291,1769256642100,-500.0,0.00013698,2]
[403186292,1769256642109,-500.0,0.00013698,2]
[403186293,1769256642119,-500.0,0.00013698,2]
[403186294,1769256642128,-500.0,0.00013698,2]
[403186295,1769256642138,-171.84070592,0.00013699,3]
[403186296,1769256642148,-202.03058125,0.00013699,3]
[403186297,1769256642158,-150.07696773,0.00013699,3]
[403186298,1769256642169,-500.0,0.00013699,2]
[403186299,1769256642179,-365.7708818,0.00013699,2]
[403186300,1769256642188,-500.0,0.00013699,2]
[403186301,1769256642198,-500.0,0.00013699,2]
[403186302,1769256642208,-500.0,0.00013699,2]
[403186303,1769256642217,-513.25535788,0.00013699,2]
[403186304,1769256642226,-500.0,0.00013699,2]
[403186305,1769256642235,-500.0,0.00013699,2]
[403186306,1769256642244,-500.0,0.00013699,2]
[403186307,1769256642254,-9351.13,0.00013703,2]
[403186308,1769256642263,-892.32,0.00013779,2]
[403186309,1769256642272,-174.61919141,0.00013779,2]
[403186310,1769256642281,-500.0,0.00013779,2]
[403186311,1769256642290,-500.0,0.00013779,2]
[403186312,1769256642299,-500.0,0.00013779,2]
[403186313,1769256642308,-500.0,0.00013779,2]
[403186314,1769256642317,-500.0,0.00013779,2]
[403186315,1769256642326,-500.0,0.00013779,2]
[403186316,1769256642336,-500.0,0.00013779,2]
[403186317,1769256642345,-500.0,0.00013779,2]
[403186318,1769256642354,-500.0,0.00013779,2]
[403186319,1769256642363,-721.12765535,0.00013779,2]
[403186320,1769256642372,-500.0,0.00013779,2]
[403186321,1769256642382,-500.0,0.00013779,2]
[403186322,1769256642391,-500.0,0.00013779,2]
[403186323,1769256642400,-500.0,0.00013779,2]
[403186324,1769256642409,-500.0,0.00013779,2]
[403186325,1769256642419,-500.0,0.00013779,2]
[403186326,1769256642428,-500.0,0.00013779,2]
[403186327,1769256642439,-500.0,0.00013779,2]
[403186328,1769256642448,-500.0,0.00013779,2]
[403186329,1769256642458,-500.0,0.00013779,2]
[403186330,1769256642468,-500.0,0.00013779,2]
[403186331,1769256642478,-500.0,0.00013779,2]
[403186332,1769256642488,-500.0,0.00013779,2]
[403186333,1769256642498,-578.20924308,0.00013779,2]
[403186334,1769256642507,-250.0,0.00013779,2]
[403186335,1769256642517,-250.0,0.00013779,2]
[403186336,1769256642527,-250.0,0.00013779,2]
[403186337,1769256642536,-250.0,0.00013779,2]
[403186338,1769256642545,-250.0,0.00013779,2]
[403186339,1769256642554,-250.0,0.00013779,2]
[403186340,1769256642563,-500.0,0.00013779,2]
[403186341,1769256642573,-263.33008425,0.00013779,2]
[403186342,1769256642582,-500.0,0.00013779,2]
[403186343,1769256642592,-250.0,0.00013779,2]
[403186344,1769256642601,-266.11006595,0.00013779,2]
[403186345,1769256642610,-500.0,0.00013779,2]
[403186346,1769256642619,-500.0,0.00013779,2]
[403186347,1769256642628,-151.0,0.00013779,2]
[403186348,1769256642638,-500.0,0.00013779,2]
[403186349,1769256642647,-151.0,0.00013779,2]
[403186350,1769256642656,-500.0,0.00013779,2]
[403186351,1769256642665,-151.0,0.00013779,2]
[403186352,1769256642674,-500.0,0.00013779,2]
[403186353,1769256642684,-151.0,0.00013779,2]
[403186354,1769256642693,-500.0,0.00013779,2]
[403186355,1769256642703,-151.0,0.00013779,2]
[403186356,1769256642712,-500.0,0.00013779,2]
[403186357,1769256642722,-854.2589148,0.00013779,2]
[403186358,1769256642731,-151.0,0.00013779,2]
[403186359,1769256642740,-500.0,0.00013779,2]
[403186360,1769256642755,-151.0,0.00013779,2]
[403186361,1769256642764,-500.0,0.00013779,2]
[403186362,1769256642774,-500.0,0.00013779,2]
[403186363,1769256642785,-151.0,0.00013779,2]
[403186364,1769256642795,-500.0,0.00013779,2]
[403186365,1769256642805,-151.0,0.00013779,2]
[403186366,1769256642815,-500.0,0.00013779,2]
[403186367,1769256642824,-151.0,0.00013779,2]
[403186368,1769256642839,-500.0,0.00013779,2]
[403186369,1769256642848,-151.0,0.00013779,2]
[403186370,1769256642857,-500.0,0.00013779,2]
[403186371,1769256642867,-500.0,0.00013779,2]
[403186372,1769256642876,-250.0,0.00013779,2]
[403186373,1769256642885,-500.0,0.00013779,2]
[403186374,1769256642895,-250.0,0.00013779,2]
[403186375,1769256642904,-500.0,0.00013779,2]
[403186376,1769256642913,-250.0,0.00013779,2]
[403186377,1769256642922,-500.0,0.00013779,2]
[403186378,1769256642932,-250.0,0.00013779,2]
[403186379,1769256642942,-500.0,0.00013779,2]
[403186380,1769256642951,-250.0,0.00013779,2]
[403186381,1769256642960,-500.0,0.00013779,2]
[403186382,1769256642970,-322.6107,0.00013779,2]
[403186383,1769256642979,-250.0,0.00013779,2]
[403186384,1769256642990,-250.0,0.00013779,2]
[403186385,1769256642999,-250.0,0.00013779,2]
[403186386,1769256643009,-250.0,0.00013779,2]
[403186387,1769256643018,-250.0,0.00013779,2]
[403186388,1769256643028,-250.0,0.00013779,2]
[403186389,1769256643037,-250.0,0.00013779,2]
[403186390,1769256643046,-250.0,0.00013779,2]
[403186391,1769256643055,-250.0,0.00013779,2]
[403186393,1769256643064,-250.0,0.00013779,2]
[403186394,1769256643073,-250.0,0.00013779,2]
[403186395,1769256643083,-250.0,0.00013779,2]
[403186396,1769256643092,-250.0,0.00013779,2]
[403186397,1769256643101,-250.0,0.00013779,2]
[403186398,1769256643110,-250.0,0.00013779,2]
[403186400,1769256643118,-250.0,0.00013779,2]
[403186401,1769256643128,-209.40437684,0.00013779,2]
[403186402,1769256643136,-250.0,0.00013779,2]
[403186403,1769256643145,-743.50770149,0.00013779,2]
[403186404,1769256643154,-8798.70850594,0.00013819,2]
[403186405,1769256643163,-892.32,0.00014053,2]
[403186406,1769256643171,-259.0,0.00014133,2]
[403186407,1769256643181,-216.92,0.00014213,2]
[403186408,1769256643190,-2351.0,0.0001425,2]
[403186409,1769256643199,-892.32,0.00014327,2]
[403186410,1769256643208,-181.08010149,0.00014327,2]
[403186411,1769256643217,-885.86649465,0.00014327,2]
[403186412,1769256643226,-217.15233878,0.00014327,2]
[403186413,1769256643235,-323.07684382,0.00014327,2]
[403186414,1769256643244,-279.3393115,0.00014402,2]
[403186415,1769256643254,-338.0,0.00014466,2]
[403186416,1769256643263,-8798.70850594,0.00014499,2]
[403186417,1769256643272,-500.0,0.00014504,2]
[403186418,1769256643281,-182.74,0.00014504,2]
[403186419,1769256643290,-9999.99,0.00014504,2]
[403186420,1769256643299,-150.99,0.00014504,2]
[403186421,1769256643308,-222.33,0.00014564,2]
[403186422,1769256643317,-892.32,0.00014601,2]
[403186423,1769256643326,-151.0,0.00014736,2]
[403186424,1769256643335,-151.0,0.00014817,2]
[403186425,1769256643344,-892.32,0.00014875,2]
[403186427,1769256643353,-187.78006525,0.00014875,2]
[403186429,1769256643362,-225.18697532,0.00014875,2]
[403186431,1769256643371,-29472.0,0.00014951,2]
[403186433,1769256643380,-151.0,0.00014997,2]
[403186435,1769256643389,-151.0,0.00014997,2]
[403186436,1769256643398,-334.5472959,0.00015148,2]
[403186437,1769256643407,-892.32,0.00015149,2]
[403186439,1769256643416,-214.96623226,0.00015169,2]
[403186441,1769256643425,-8798.70850594,0.00015179,2]
[403186443,1769256643434,-279.3393115,0.00015276,2]
[403186444,1769256643443,-200.0,0.00015288,2]
[403186445,1769256643453,-500.0,0.00015288,2]
[403186446,1769256643462,-892.32,0.00015423,2]
[403186447,1769256643471,-194.72792766,0.00015423,2]
[403186448,1769256643480,-181.14462682,0.00015423,2]
[403186449,1769256643489,-1002.67929229,0.00015478,2]
[403186450,1769256643499,-250.0,0.00015562,2]
[403186451,1769256643510,-3292.0,0.00015675,2]
[403186452,1769256643520,-892.32,0.00015697,2]
[403186453,1769256643529,-500.0,0.00015717,2]
[403186454,1769256643539,-274.11896166,0.00015773,2]
[403186455,1769256643549,-8798.70850594,0.00015859,2]
[403186456,1769256643558,-500.0,0.00015873,2]
[403186457,1769256643567,-500.0,0.00015873,2]
[403186458,1769256643579,-500.0,0.00015873,2]
[403186459,1769256643589,-500.0,0.00015873,2]
[403186460,1769256643599,-500.0,0.00015873,2]
[403186461,1769256643609,-500.0,0.00015873,2]
[403186462,1769256643619,-500.0,0.00015873,2]
[403186463,1769256643629,-500.0,0.00015873,2]
[403186464,1769256643640,-500.0,0.00015873,2]
[403186465,1769256643649,-500.0,0.00015873,2]
[403186466,1769256643658,-502.29619989,0.00015873,2]
[403186467,1769256643667,-500.0,0.00015873,2]
[403186468,1769256643675,-166.08381347,0.00015873,2]
[403186469,1769256643684,-501.64063566,0.00015873,2]
[403186470,1769256643694,-500.0,0.00015873,2]
[403186471,1769256643703,-500.0,0.00015873,2]
[403186472,1769256643712,-500.0,0.00015873,2]
[403186473,1769256643720,-500.0,0.00015873,2]
[403186474,1769256643731,-500.0,0.00015873,2]
[403186475,1769256643741,-501.6930998,0.00015873,2]
[403186476,1769256643750,-500.62373681,0.00015873,2]
[403186477,1769256643763,-500.0,0.00015873,2]
[403186478,1769256643772,-500.0,0.00015873,2]
[403186479,1769256643782,-501.35548304,0.00015873,2]
[403186480,1769256643791,-500.0,0.00015873,2]
[403186481,1769256643800,-545.47745705,0.00015873,2]
[403186482,1769256643809,-313.95514595,0.00015873,2]
[403186483,1769256643818,-501.00143477,0.00015873,2]
[403186484,1769256643826,-594.87,0.00015918,2]
[403186485,1769256643836,-635.76080296,0.0001596,2]
[403186486,1769256643844,-892.32,0.00015971,2]
[403186487,1769256643854,-201.93286099,0.00015971,2]
[403186488,1769256643863,-274.11896161,0.00016128,2]
[403186489,1769256643872,-279.3393115,0.00016151,2]
[403186490,1769256643881,-892.32,0.00016245,2]
[403186491,1769256643890,-1102.0,0.00016252,2]
[403186492,1769256643900,-500.0,0.00016356,2]
[403186493,1769256643909,-500.0,0.00016356,2]
[403186494,1769256643919,-4187.0,0.0001642,2]
[403186495,1769256643928,-1001.80734067,0.00016421,2]
[403186496,1769256643937,-170.62003131,0.00016421,2]
[403186497,1769256643946,-292.86388149,0.00016421,2]
[403186498,1769256643955,-1000.0,0.00016421,2]
[403186499,1769256643964,-502.29589006,0.00016421,2]
[403186500,1769256643973,-502.78879497,0.00016421,2]
[403186501,1769256643982,-1097.63046091,0.00016421,2]
[403186502,1769256643993,-1005.95943746,0.00016421,2]
[403186503,1769256644003,-1000.0,0.00016421,2]
[403186504,1769256644012,-1000.0,0.00016421,2]
[403186505,1769256644021,-1068.24864212,0.00016421,2]
[403186506,1769256644030,-1000.0,0.00016421,2]
[403186507,1769256644039,-1000.0,0.00016421,2]
[403186508,1769256644049,-502.47348302,0.00016421,2]
[403186509,1769256644058,-1000.0,0.00016421,2]
[403186510,1769256644067,-502.42566729,0.00016421,2]
[403186511,1769256644076,-1000.0,0.00016421,2]
[403186512,1769256644086,-1000.0,0.00016421,2]
[403186513,1769256644095,-1000.0,0.00016421,2]
[403186514,1769256644104,-500.0,0.00016438,2]
[403186515,1769256644113,-500.0,0.00016438,2]
[403186516,1769256644122,-500.0,0.00016438,2]
[403186517,1769256644131,-500.0,0.00016438,2]
[403186518,1769256644141,-500.0,0.00016438,2]
[403186519,1769256644150,-500.0,0.00016438,2]
[403186520,1769256644159,-500.0,0.00016438,2]
[403186521,1769256644170,-500.0,0.00016438,2]
[403186522,1769256644179,-500.0,0.00016438,2]
[403186523,1769256644189,-500.0,0.00016438,2]
[403186524,1769256644199,-500.0,0.00016438,2]
[403186525,1769256644209,-500.0,0.00016438,2]
[403186526,1769256644218,-500.0,0.00016438,2]
[403186527,1769256644227,-500.0,0.00016438,2]
[403186528,1769256644236,-500.0,0.00016438,2]
[403186529,1769256644246,-379.88544241,0.00016438,2]
[403186530,1769256644255,-500.0,0.00016438,2]
[403186531,1769256644264,-500.0,0.00016438,2]
[403186532,1769256644274,-500.0,0.00016438,2]
[403186533,1769256644283,-500.0,0.00016438,2]
[403186534,1769256644292,-3012.0,0.00016438,2]
[403186535,1769256644301,-151.0,0.00016438,2]
[403186536,1769256644310,-274.11896161,0.00016482,2]
[403186537,1769256644319,-594.87,0.00016515,2]
[403186538,1769256644328,-346.92554585,0.00016517,2]
[403186539,1769256644337,-721.12765535,0.00016518,2]
[403186540,1769256644346,-599.60298507,0.00016518,2]
[403186541,1769256644355,-892.32,0.00016519,2]
[403186542,1769256644364,-209.40437684,0.00016519,2]
[403186543,1769256644373,-8798.70850594,0.0001654,2]
[403186544,1769256644382,-158.81404097,0.00016649,2]
[403186545,1769256644391,-166.61,0.00016712,2]
[403186546,1769256644400,-892.33,0.00016793,2]
[403186547,1769256644409,-274.11896161,0.00016837,2]
[403186548,1769256644418,-150.0,0.0001684,2]
[403186549,1769256644427,-500.0,0.00016862,2]
[403186550,1769256644436,-151.0,0.00016965,2]
[403186551,1769256644446,-1500.0,0.00016968,2]
[403186552,1769256644455,-1500.0,0.00016968,2]
[403186553,1769256644464,-1500.0,0.00016968,2]
[403186554,1769256644473,-1500.0,0.00016968,2]
[403186555,1769256644482,-1500.0,0.00016968,2]
[403186556,1769256644491,-1500.0,0.00016968,2]
[403186557,1769256644500,-1500.0,0.00016968,2]
[403186558,1769256644510,-1500.0,0.00016968,2]
[403186559,1769256644520,-1500.0,0.00016968,2]
[403186560,1769256644529,-714.8,0.00016988,2]
[403186561,1769256644538,-250.0,0.00017,2]
[403186562,1769256644547,-279.3393115,0.00017025,2]
[403186563,1769256644556,-217.15233878,0.00017067,2]
[403186564,1769256644566,-714.8,0.0001708,2]
[403186565,1769256644575,-594.87,0.00017112,2]
[403186566,1769256644585,-4236.06670475,0.00017128,2]
[403186567,1769256644599,-714.8,0.00017172,2]
[403186568,1769256644619,-359.78,0.00017178,2]
[403186569,1769256644629,-1333.0,0.00017188,2]
[403186570,1769256644641,-615.0,0.00017188,2]
[403186571,1769256644653,-3476.0,0.00017188,2]
[403186572,1769256644664,-276.0,0.00017188,2]
[403186573,1769256644673,-1269.0,0.00017188,2]
[403186574,1769256644682,-487.0,0.00017188,2]
[403186575,1769256644691,-487.0,0.00017188,2]
[403186576,1769256644700,-487.0,0.00017188,2]
[403186577,1769256644709,-487.0,0.00017188,2]
[403186578,1769256644718,-513.2,0.00017188,2]
[403186579,1769256644727,-1203.0,0.00017188,2]
[403186580,1769256644736,-916.0,0.00017188,2]
[403186581,1769256644745,-2442.0,0.00017188,2]
[403186582,1769256644755,-4830.0,0.00017188,2]
[403186583,1769256644766,-6568.0,0.00017188,2]
[403186584,1769256644775,-274.11896161,0.00017191,2]
[403186585,1769256644784,-8798.70850594,0.0001722,2]
[403186586,1769256644794,-216.92,0.00017242,2]
[403186587,1769256644803,-4609.0,0.00017242,2]
[403186588,1769256644813,-1000.0,0.0001726,2]
[403186589,1769256644823,-714.8,0.00017264,2]
[403186590,1769256644832,-200.0,0.00017329,2]
[403186591,1769256644841,-200.0,0.00017329,2]
[403186592,1769256644851,-266.0,0.00017329,2]
[403186593,1769256644860,-213.0,0.00017329,2]
[403186594,1769256644868,-150.0,0.00017329,2]
[403186595,1769256644878,-150.0,0.00017329,2]
[403186596,1769256644887,-150.0,0.00017329,2]
[403186597,1769256644896,-150.0,0.00017329,2]
[403186598,1769256644905,-150.0,0.00017329,2]
[403186599,1769256644914,-150.0,0.00017329,2]
[403186600,1769256644923,-150.0,0.00017329,2]
[403186601,1769256644932,-714.8,0.00017356,2]
[403186602,1769256644942,-10000.0,0.000174,2]
[403186603,1769256644951,-1000.0,0.000174,2]
[403186604,1769256644960,-216.90873386,0.00017412,2]
[403186605,1769256644969,-714.8,0.00017448,2]
[403186606,1769256644978,-200.0,0.000175,2]
[403186607,1769256644987,-200.0,0.0001751,2]
[403186608,1769256644996,-2000.0,0.00017516,2]
[403186609,1769256645005,-1946.80273923,0.00017516,2]
[403186610,1769256645015,-2000.0,0.00017516,2]
[403186611,1769256645024,-2000.0,0.00017516,2]
[403186612,1769256645034,-2000.0,0.00017516,2]
[403186613,1769256645043,-2000.0,0.00017516,2]
[403186614,1769256645052,-996.44360934,0.00017516,2]
[403186615,1769256645061,-2000.0,0.00017516,2]
[403186616,1769256645069,-2000.0,0.00017516,2]
[403186617,1769256645078,-1000.0,0.00017534,2]
[403186618,1769256645087,-714.8,0.0001754,2]
[403186619,1769256645096,-274.11896161,0.00017546,2]
[403186620,1769256645106,-386.0,0.00017586,2]
[403186621,1769256645115,-1225.44,0.00017609,2]
[403186622,1769256645124,-612.72,0.00017609,2]
[403186623,1769256645133,-1218.14,0.00017609,2]
[403186624,1769256645142,-1320.13,0.00017609,2]
[403186625,1769256645152,-612.72,0.00017609,2]
[403186626,1769256645161,-484.52,0.00017609,2]
[403186627,1769256645170,-612.72,0.00017609,2]
[403186628,1769256645179,-988.7,0.00017609,2]
[403186629,1769256645188,-612.72,0.00017609,2]
[403186630,1769256645198,-484.52,0.00017609,2]
[403186631,1769256645209,-612.72,0.00017609,2]
[403186632,1769256645217,-969.04,0.00017609,2]
[403186633,1769256645226,-612.72,0.00017609,2]
[403186634,1769256645235,-484.52,0.00017609,2]
[403186635,1769256645245,-612.72,0.00017609,2]
[403186636,1769256645255,-612.72,0.00017609,2]
[403186637,1769256645266,-612.72,0.00017609,2]
[403186638,1769256645276,-612.72,0.00017609,2]
[403186639,1769256645286,-484.52,0.00017609,2]
[403186640,1769256645295,-484.52,0.00017609,2]
[403186641,1769256645305,-612.72,0.00017609,2]
[403186642,1769256645315,-484.52,0.00017609,2]
[403186643,1769256645325,-484.52,0.00017609,2]
[403186644,1769256645337,-612.72,0.00017609,2]
[403186645,1769256645347,-225.18697532,0.00017615,2]
[403186646,1769256645356,-386.0,0.00017618,2]
[403186647,1769256645366,-714.8,0.00017632,2]
[403186648,1769256645375,-1569.90652218,0.0001764,2]
[403186649,1769256645384,-386.0,0.00017664,2]
[403186650,1769256645393,-172.8753019,0.00017696,2]
[403186651,1769256645402,-7069.08068445,0.000177,2]